[Event "Early-Titled-Tuesday-Blitz-May-14-2024"]
[Site "Chess.com"]
[Date "2024.05.14"]
[Round "4"]
[White "youngdinousaur"]
[Black "SayonaraPonytail"]
[Result "1-0"]
[WhiteElo "2389"]
[BlackElo "2542"]
[TimeControl "180+1"]
[EndTime "8:41:19 PDT"]
[Termination "youngdinousaur won by resignation"]

1. d4 {[%clk 0:03:00.9]} 1... d5 {[%clk 0:02:58.9]} 2. Nf3 {[%clk 0:02:54.7]}
2... Nf6 {[%clk 0:02:57.8]} 3. Bf4 {[%clk 0:02:54.4]} 3... e6 {[%clk 0:02:57.4]}
4. e3 {[%clk 0:02:55]} 4... Bd6 {[%clk 0:02:57.7]} 5. Bg3 {[%clk 0:02:54.1]}
5... O-O {[%clk 0:02:58]} 6. Bd3 {[%clk 0:02:53.9]} 6... c5 {[%clk 0:02:58.2]}
7. c3 {[%clk 0:02:54.4]} 7... Qc7 {[%clk 0:02:58.2]} 8. Ne5 {[%clk 0:02:54.5]}
8... Nbd7 {[%clk 0:02:57.1]} 9. f4 {[%clk 0:02:54.7]} 9... Ne4 {[%clk 0:02:57]}
10. Nd2 {[%clk 0:02:47.8]} 10... Nxd2 {[%clk 0:02:54.4]} 11. Qxd2 {[%clk
0:02:48.7]} 11... Nf6 {[%clk 0:02:44.9]} 12. Bh4 {[%clk 0:02:45]} 12... Ne4
{[%clk 0:02:44.1]} 13. Bxe4 {[%clk 0:02:37.1]} 13... dxe4 {[%clk 0:02:45]} 14.
Nc4 {[%clk 0:02:37.6]} 14... Be7 {[%clk 0:02:33.6]} 15. Bxe7 {[%clk 0:02:32.2]}
15... Qxe7 {[%clk 0:02:34.4]} 16. O-O {[%clk 0:01:57.1]} 16... Rd8 {[%clk
0:02:22.7]} 17. Qc2 {[%clk 0:01:50.8]} 17... b6 {[%clk 0:02:17.2]} 18. Nd2
{[%clk 0:01:23]} 18... Ba6 {[%clk 0:02:14.4]} 19. Rf2 {[%clk 0:01:20.6]} 19...
Bd3 {[%clk 0:02:13.7]} 20. Qa4 {[%clk 0:01:19.4]} 20... Rac8 {[%clk 0:02:10.8]}
21. dxc5 {[%clk 0:01:10.4]} 21... Qxc5 {[%clk 0:02:10.6]} 22. Re1 {[%clk
0:01:04.6]} 22... b5 {[%clk 0:01:50.1]} 23. Qa5 {[%clk 0:00:52.7]} 23... Qd5
{[%clk 0:01:07.8]} 24. Nb3 {[%clk 0:00:49.9]} 24... Bc4 {[%clk 0:01:06.7]} 25.
Rd2 {[%clk 0:00:45.1]} 25... Qa8 {[%clk 0:01:03.8]} 26. Red1 {[%clk 0:00:38.1]}
26... Bd3 {[%clk 0:01:02.8]} 27. Nc1 {[%clk 0:00:35.6]} 27... g6 {[%clk
0:01:00.3]} 28. Nxd3 {[%clk 0:00:35.5]} 28... exd3 {[%clk 0:01:01.2]} 29. Qxb5
{[%clk 0:00:29.5]} 29... Rb8 {[%clk 0:00:59.3]} 30. Rxd3 {[%clk 0:00:24]} 30...
Rxd3 {[%clk 0:00:57.5]} 31. Qxd3 {[%clk 0:00:24.6]} 31... Qc6 {[%clk 0:00:52.9]}
32. b3 {[%clk 0:00:21.9]} 32... h5 {[%clk 0:00:52.1]} 33. c4 {[%clk 0:00:22.3]}
33... Qa6 {[%clk 0:00:45.5]} 34. Rd2 {[%clk 0:00:20.4]} 34... Qa5 {[%clk
0:00:44.9]} 35. Kf2 {[%clk 0:00:20.5]} 35... h4 {[%clk 0:00:44.5]} 36. g3 {[%clk
0:00:19.6]} 36... hxg3+ {[%clk 0:00:44.3]} 37. hxg3 {[%clk 0:00:20.5]} 37... Qh5
{[%clk 0:00:44.1]} 38. Qe4 {[%clk 0:00:18]} 38... Qh2+ {[%clk 0:00:42.5]} 39.
Qg2 {[%clk 0:00:18]} 39... Qh5 {[%clk 0:00:42]} 40. e4 {[%clk 0:00:17.5]} 40...
Qc5+ {[%clk 0:00:41.5]} 41. Ke2 {[%clk 0:00:15.6]} 41... Kg7 {[%clk 0:00:41.4]}
42. Qf2 {[%clk 0:00:14.6]} 42... Qh5+ {[%clk 0:00:41.7]} 43. Qf3 {[%clk
0:00:13.8]} 43... Qh2+ {[%clk 0:00:42.1]} 44. Kd1 {[%clk 0:00:10.6]} 44... Rh8
{[%clk 0:00:39.5]} 45. Rxh2 {[%clk 0:00:08.7]} 45... Rxh2 {[%clk 0:00:39.6]} 46.
Qc3+ {[%clk 0:00:09.6]} 46... f6 {[%clk 0:00:39.7]} 47. e5 {[%clk 0:00:09.4]}
47... f5 {[%clk 0:00:39.6]} 48. c5 {[%clk 0:00:09.8]} 48... Rxa2 {[%clk
0:00:40]} 49. c6 {[%clk 0:00:09.7]} 49... g5 {[%clk 0:00:39.6]} 50. c7 {[%clk
0:00:09.9]} 1-0

[Event "Early-Titled-Tuesday-Blitz-May-14-2024"]
[Site "Chess.com"]
[Date "2024.05.14"]
[Round "4"]
[White "ernestina08chess"]
[Black "ProtectiveCarrot"]
[Result "0-1"]
[WhiteElo "2301"]
[BlackElo "2515"]
[TimeControl "180+1"]
[EndTime "8:41:19 PDT"]
[Termination "ProtectiveCarrot won by checkmate"]

1. e4 {[%clk 0:03:00.9]} 1... c6 {[%clk 0:02:54.6]} 2. d4 {[%clk 0:02:59.7]}
2... d5 {[%clk 0:02:55.5]} 3. e5 {[%clk 0:03:00.3]} 3... Bf5 {[%clk 0:02:53.3]}
4. h4 {[%clk 0:03:00.8]} 4... Qc7 {[%clk 0:02:51]} 5. Bd3 {[%clk 0:02:55.6]}
5... Bxd3 {[%clk 0:02:49.8]} 6. Qxd3 {[%clk 0:02:56.5]} 6... e6 {[%clk
0:02:50.1]} 7. Ne2 {[%clk 0:02:49.6]} 7... c5 {[%clk 0:02:50.1]} 8. c3 {[%clk
0:02:43.2]} 8... Nc6 {[%clk 0:02:50.1]} 9. a3 {[%clk 0:02:35]} 9... c4 {[%clk
0:02:39.1]} 10. Qg3 {[%clk 0:02:29.5]} 10... Nge7 {[%clk 0:02:35.9]} 11. Bg5
{[%clk 0:02:22.4]} 11... Nf5 {[%clk 0:02:34]} 12. Qf3 {[%clk 0:02:19.7]} 12...
h5 {[%clk 0:02:34.3]} 13. Ng3 {[%clk 0:02:17.6]} 13... Nxg3 {[%clk 0:02:27.6]}
14. fxg3 {[%clk 0:02:17.3]} 14... Be7 {[%clk 0:02:24.7]} 15. O-O {[%clk
0:02:06.3]} 15... Bxg5 {[%clk 0:02:22.3]} 16. hxg5 {[%clk 0:02:07.2]} 16... g6
{[%clk 0:02:17.3]} 17. Qf6 {[%clk 0:02:04]} 17... Rf8 {[%clk 0:02:16.1]} 18. a4
{[%clk 0:01:59.6]} 18... Ne7 {[%clk 0:02:14.6]} 19. Na3 {[%clk 0:01:44.6]} 19...
a6 {[%clk 0:02:06.4]} 20. Qf2 {[%clk 0:01:28.6]} 20... Nf5 {[%clk 0:02:04.4]}
21. Nc2 {[%clk 0:01:29.3]} 21... Qe7 {[%clk 0:02:00.1]} 22. Qf4 {[%clk
0:01:26.9]} 22... Kd7 {[%clk 0:01:59.1]} 23. Ne3 {[%clk 0:01:25.5]} 23... Nxe3
{[%clk 0:01:44.8]} 24. Qxe3 {[%clk 0:01:24.7]} 24... b5 {[%clk 0:01:45.3]} 25.
Rf6 {[%clk 0:01:10.5]} 25... b4 {[%clk 0:01:39.8]} 26. Raf1 {[%clk 0:00:55.5]}
26... Rab8 {[%clk 0:01:34.2]} 27. Qf2 {[%clk 0:00:54.2]} 27... Ke8 {[%clk
0:01:28.2]} 28. a5 {[%clk 0:00:47.1]} 28... bxc3 {[%clk 0:01:25]} 29. bxc3
{[%clk 0:00:44.9]} 29... Rb3 {[%clk 0:01:25.1]} 30. Qa2 {[%clk 0:00:19.8]} 30...
Qd7 {[%clk 0:01:16.4]} 31. Qf2 {[%clk 0:00:15.9]} 31... Qe7 {[%clk 0:01:08.3]}
32. Qa2 {[%clk 0:00:15.4]} 32... Qa3 {[%clk 0:01:06.5]} 33. Qxa3 {[%clk
0:00:09.5]} 33... Rxa3 {[%clk 0:01:07.4]} 34. Rb1 {[%clk 0:00:10]} 34... Kd7
{[%clk 0:01:00.6]} 35. Rb7+ {[%clk 0:00:09.2]} 35... Kc6 {[%clk 0:01:00.9]} 36.
Rb6+ {[%clk 0:00:08.4]} 36... Kc7 {[%clk 0:01:00.5]} 37. Rxa6 {[%clk 0:00:08.2]}
37... Rxc3 {[%clk 0:00:59.3]} 38. Ra7+ {[%clk 0:00:08.2]} 38... Kc6 {[%clk
0:00:58.7]} 39. Raxf7 {[%clk 0:00:08.3]} 39... Rxf7 {[%clk 0:00:59]} 40. Rxf7
{[%clk 0:00:09]} 40... Ra3 {[%clk 0:00:55.7]} 41. Re7 {[%clk 0:00:07.9]} 41...
c3 {[%clk 0:00:56]} 42. Rxe6+ {[%clk 0:00:08.4]} 42... Kb5 {[%clk 0:00:56.6]}
43. Rb6+ {[%clk 0:00:07.4]} 43... Kc4 {[%clk 0:00:55.4]} 44. e6 {[%clk
0:00:06.2]} 44... Rxa5 {[%clk 0:00:42.2]} 45. e7 {[%clk 0:00:06.2]} 45... Ra8
{[%clk 0:00:42]} 46. Rc6+ {[%clk 0:00:06]} 46... Kxd4 {[%clk 0:00:41.8]} 47. Rd6
{[%clk 0:00:05.7]} 47... c2 {[%clk 0:00:40.9]} 48. Rd8 {[%clk 0:00:05.7]} 48...
c1=Q+ {[%clk 0:00:40.3]} 49. Kh2 {[%clk 0:00:06.4]} 49... Ra1 {[%clk 0:00:37.9]}
50. g4 {[%clk 0:00:01.6]} 50... Qf4+ {[%clk 0:00:36.1]} 51. Kh3 {[%clk
0:00:00.6]} 51... Rh1# {[%clk 0:00:35.1]} 0-1

[Event "Early-Titled-Tuesday-Blitz-May-14-2024"]
[Site "Chess.com"]
[Date "2024.05.14"]
[Round "4"]
[White "IMRosen"]
[Black "BelyakovBogdan"]
[Result "1-0"]
[WhiteElo "2781"]
[BlackElo "2590"]
[TimeControl "180+1"]
[EndTime "8:41:20 PDT"]
[Termination "IMRosen won by resignation"]

1. e4 {[%clk 0:03:00.9]} 1... e5 {[%clk 0:03:00]} 2. Nf3 {[%clk 0:03:01]} 2...
Nc6 {[%clk 0:03:00.2]} 3. g3 {[%clk 0:03:01.7]} 3... Nf6 {[%clk 0:02:58.2]} 4.
d3 {[%clk 0:03:01.4]} 4... d5 {[%clk 0:02:58.1]} 5. exd5 {[%clk 0:02:59.7]} 5...
Nxd5 {[%clk 0:02:57.8]} 6. Bg2 {[%clk 0:03:00.5]} 6... Bc5 {[%clk 0:02:53]} 7.
O-O {[%clk 0:03:00.7]} 7... O-O {[%clk 0:02:52.9]} 8. Nbd2 {[%clk 0:03:00.4]}
8... Bg4 {[%clk 0:02:51.5]} 9. h3 {[%clk 0:02:59.4]} 9... Bh5 {[%clk 0:02:41.1]}
10. c3 {[%clk 0:02:59.6]} 10... f5 {[%clk 0:02:33.6]} 11. a4 {[%clk 0:02:40.8]}
11... a5 {[%clk 0:02:31.1]} 12. Qb3 {[%clk 0:02:38.1]} 12... Kh8 {[%clk
0:02:16.6]} 13. Re1 {[%clk 0:02:18.2]} 13... Nb6 {[%clk 0:00:45.1]} 14. Nxe5
{[%clk 0:01:44.1]} 14... Nxe5 {[%clk 0:00:45]} 15. Rxe5 {[%clk 0:01:44.6]} 15...
Bd6 {[%clk 0:00:31.4]} 16. Re1 {[%clk 0:01:38.4]} 16... f4 {[%clk 0:00:31.2]}
17. g4 {[%clk 0:01:38.2]} 17... Bg6 {[%clk 0:00:25.6]} 18. d4 {[%clk 0:01:31.8]}
18... Bf7 {[%clk 0:00:18.5]} 19. Qb5 {[%clk 0:01:26.2]} 19... c6 {[%clk
0:00:16.7]} 20. Qd3 {[%clk 0:01:17.6]} 20... Bd5 {[%clk 0:00:16.3]} 21. Nf3
{[%clk 0:01:11.5]} 21... Qd7 {[%clk 0:00:12.4]} 22. Bd2 {[%clk 0:01:10.4]} 22...
Qf7 {[%clk 0:00:08.5]} 23. Rac1 {[%clk 0:00:56.3]} 23... h6 {[%clk 0:00:07.6]}
24. Bf1 {[%clk 0:00:34.9]} 24... Bc4 {[%clk 0:00:06.4]} 25. Qb1 {[%clk
0:00:33.2]} 25... Ba2 {[%clk 0:00:06.3]} 26. Qa1 {[%clk 0:00:26.7]} 26... Bd5
{[%clk 0:00:06.5]} 27. Bg2 {[%clk 0:00:26.9]} 27... Bb3 {[%clk 0:00:05.2]} 28.
Qb1 {[%clk 0:00:20.2]} 28... Ba2 {[%clk 0:00:04.7]} 29. Qe4 {[%clk 0:00:18.3]}
29... Bd5 {[%clk 0:00:04.8]} 30. Qb1 {[%clk 0:00:14.4]} 30... Ba2 {[%clk
0:00:04.9]} 31. Qa1 {[%clk 0:00:15]} 31... Bd5 {[%clk 0:00:04.7]} 32. Re2 {[%clk
0:00:08.7]} 32... Bc4 {[%clk 0:00:04.7]} 33. Re4 {[%clk 0:00:08.4]} 33... Bd5
{[%clk 0:00:05.2]} 34. Re5 {[%clk 0:00:08.1]} 34... Bxe5 {[%clk 0:00:04.9]} 35.
Nxe5 {[%clk 0:00:09]} 35... Qe6 {[%clk 0:00:05.7]} 36. Qb1 {[%clk 0:00:08.7]}
36... Bxg2 {[%clk 0:00:05.7]} 37. Kxg2 {[%clk 0:00:08.8]} 37... f3+ {[%clk
0:00:06.1]} 38. Kg3 {[%clk 0:00:07.1]} 38... Nd5 {[%clk 0:00:06.3]} 39. Ng6+
{[%clk 0:00:05.5]} 39... Kg8 {[%clk 0:00:06.4]} 40. Nxf8 {[%clk 0:00:06.1]}
40... Rxf8 {[%clk 0:00:06.8]} 41. Re1 {[%clk 0:00:06]} 41... Qd6+ {[%clk
0:00:07.1]} 42. Re5 {[%clk 0:00:06.7]} 42... Qg6 {[%clk 0:00:07.1]} 43. Qxg6
{[%clk 0:00:04.2]} 1-0

[Event "Early-Titled-Tuesday-Blitz-May-14-2024"]
[Site "Chess.com"]
[Date "2024.05.14"]
[Round "4"]
[White "Schattman"]
[Black "crescentmoon2411"]
[Result "0-1"]
[WhiteElo "2563"]
[BlackElo "2844"]
[TimeControl "180+1"]
[EndTime "8:41:23 PDT"]
[Termination "crescentmoon2411 won on time"]

1. d4 {[%clk 0:03:00.9]} 1... d5 {[%clk 0:02:59.5]} 2. Nc3 {[%clk 0:03:00.8]}
2... Nf6 {[%clk 0:02:59.2]} 3. Bg5 {[%clk 0:02:56.4]} 3... c5 {[%clk 0:02:58.3]}
4. e3 {[%clk 0:02:52.8]} 4... Nc6 {[%clk 0:02:57.9]} 5. Bxf6 {[%clk 0:02:48.8]}
5... gxf6 {[%clk 0:02:58.8]} 6. Nf3 {[%clk 0:02:45.7]} 6... Bg4 {[%clk 0:02:53]}
7. dxc5 {[%clk 0:02:41.8]} 7... e6 {[%clk 0:02:51.6]} 8. Be2 {[%clk 0:02:40.1]}
8... Bxc5 {[%clk 0:02:50.2]} 9. Nd4 {[%clk 0:02:40.2]} 9... Bxd4 {[%clk
0:02:44.4]} 10. exd4 {[%clk 0:02:36.2]} 10... Bf5 {[%clk 0:02:42.7]} 11. Qd2
{[%clk 0:02:25.5]} 11... a6 {[%clk 0:02:36.6]} 12. g4 {[%clk 0:02:24.4]} 12...
Bg6 {[%clk 0:02:34]} 13. h4 {[%clk 0:02:20.7]} 13... h5 {[%clk 0:02:24.3]} 14.
g5 {[%clk 0:02:17.4]} 14... fxg5 {[%clk 0:02:20.4]} 15. hxg5 {[%clk 0:02:17.3]}
15... Qb6 {[%clk 0:02:10]} 16. O-O-O {[%clk 0:02:16.9]} 16... Nb4 {[%clk
0:02:08.5]} 17. Qf4 {[%clk 0:01:49.2]} 17... Rc8 {[%clk 0:01:58.5]} 18. Qf6
{[%clk 0:01:41.5]} 18... Nxa2+ {[%clk 0:01:37.5]} 19. Kd2 {[%clk 0:01:29.7]}
19... Qxb2 {[%clk 0:01:37.3]} 20. Qxh8+ {[%clk 0:01:18.4]} 20... Kd7 {[%clk
0:01:35.4]} 21. Qxc8+ {[%clk 0:01:18.2]} 21... Kxc8 {[%clk 0:01:36.3]} 22. Nxa2
{[%clk 0:01:16.8]} 22... Qxc2+ {[%clk 0:01:26.8]} 23. Ke3 {[%clk 0:01:12.7]}
23... Qxa2 {[%clk 0:01:27.7]} 24. Rc1+ {[%clk 0:01:09.1]} 24... Kd7 {[%clk
0:01:25.7]} 25. Rc3 {[%clk 0:01:09]} 25... Qa5 {[%clk 0:01:12.1]} 26. Rhc1
{[%clk 0:01:07.9]} 26... h4 {[%clk 0:01:06.7]} 27. f4 {[%clk 0:01:07.7]} 27...
Qb6 {[%clk 0:00:37.8]} 28. Bg4 {[%clk 0:01:01.6]} 28... a5 {[%clk 0:00:34.5]}
29. Rc5 {[%clk 0:00:58.8]} 29... Kd6 {[%clk 0:00:27.3]} 30. f5 {[%clk
0:00:53.7]} 30... Bxf5 {[%clk 0:00:21.9]} 31. Bxf5 {[%clk 0:00:52.4]} 31... exf5
{[%clk 0:00:22.8]} 32. R5c3 {[%clk 0:00:47.1]} 32... f4+ {[%clk 0:00:21]} 33.
Kf3 {[%clk 0:00:46.4]} 33... Qxd4 {[%clk 0:00:20.9]} 34. Rc8 {[%clk 0:00:44]}
34... Qe3+ {[%clk 0:00:20.7]} 35. Kg4 {[%clk 0:00:43.9]} 35... h3 {[%clk
0:00:12.2]} 36. Rd8+ {[%clk 0:00:42.6]} 36... Ke7 {[%clk 0:00:12.2]} 37. Rcc8
{[%clk 0:00:42.2]} 37... Qg3+ {[%clk 0:00:09.7]} 38. Kh5 {[%clk 0:00:42]} 38...
Ke6 {[%clk 0:00:08.6]} 39. Rf8 {[%clk 0:00:31.5]} 39... h2 {[%clk 0:00:07.5]}
40. Rce8+ {[%clk 0:00:30.9]} 40... Kd7 {[%clk 0:00:06.4]} 0-1

[Event "Early-Titled-Tuesday-Blitz-May-14-2024"]
[Site "Chess.com"]
[Date "2024.05.14"]
[Round "4"]
[White "RojonR"]
[Black "MatthewG-p4p"]
[Result "0-1"]
[WhiteElo "2605"]
[BlackElo "2835"]
[TimeControl "180+1"]
[EndTime "8:41:23 PDT"]
[Termination "MatthewG-p4p won by resignation"]

1. e4 {[%clk 0:03:00.5]} 1... e6 {[%clk 0:02:55.6]} 2. Nc3 {[%clk 0:02:51.8]}
2... d5 {[%clk 0:02:55.7]} 3. Qe2 {[%clk 0:02:51.7]} 3... d4 {[%clk 0:02:52.1]}
4. Nd1 {[%clk 0:02:44.8]} 4... c5 {[%clk 0:02:52.2]} 5. f4 {[%clk 0:02:43]} 5...
Nc6 {[%clk 0:02:52.5]} 6. Nf3 {[%clk 0:02:42.4]} 6... Bd6 {[%clk 0:02:39.5]} 7.
g3 {[%clk 0:02:41.2]} 7... Nge7 {[%clk 0:02:39]} 8. Bg2 {[%clk 0:02:39.9]} 8...
O-O {[%clk 0:02:39.6]} 9. d3 {[%clk 0:02:35.5]} 9... Rb8 {[%clk 0:02:13.3]} 10.
O-O {[%clk 0:02:34.8]} 10... b5 {[%clk 0:02:13.4]} 11. Nf2 {[%clk 0:02:34.4]}
11... f5 {[%clk 0:02:12.1]} 12. Re1 {[%clk 0:02:21.6]} 12... h6 {[%clk
0:02:07.5]} 13. Bd2 {[%clk 0:02:18.9]} 13... a5 {[%clk 0:02:04.5]} 14. Nh4
{[%clk 0:02:00.8]} 14... Nb4 {[%clk 0:01:53.8]} 15. Rec1 {[%clk 0:01:50.2]}
15... Kh7 {[%clk 0:01:26.2]} 16. a3 {[%clk 0:01:49.4]} 16... Nbc6 {[%clk
0:01:25.6]} 17. Re1 {[%clk 0:01:43.9]} 17... a4 {[%clk 0:01:24.5]} 18. Nh3
{[%clk 0:01:17.7]} 18... Kg8 {[%clk 0:00:41.5]} 19. Qh5 {[%clk 0:01:06.6]} 19...
Bd7 {[%clk 0:00:32.2]} 20. exf5 {[%clk 0:00:41.8]} 20... exf5 {[%clk 0:00:19.1]}
21. Ng5 {[%clk 0:00:39.4]} 21... Be8 {[%clk 0:00:13.8]} 22. Qe2 {[%clk
0:00:26.9]} 22... hxg5 {[%clk 0:00:12.9]} 23. fxg5 {[%clk 0:00:27.8]} 23... g6
{[%clk 0:00:07.8]} 24. b4 {[%clk 0:00:18.1]} 24... axb3 {[%clk 0:00:07.6]} 25.
cxb3 {[%clk 0:00:17.9]} 25... Bf7 {[%clk 0:00:08.3]} 26. b4 {[%clk 0:00:17.9]}
26... c4 {[%clk 0:00:07.8]} 27. Bf4 {[%clk 0:00:09.9]} 27... Re8 {[%clk
0:00:06.6]} 28. Qf2 {[%clk 0:00:07.5]} 28... cxd3 {[%clk 0:00:04.9]} 29. g4
{[%clk 0:00:07.4]} 29... Bxf4 {[%clk 0:00:05.3]} 30. Qxf4 {[%clk 0:00:07.3]}
30... Nd5 {[%clk 0:00:05.8]} 31. Qg3 {[%clk 0:00:05.6]} 31... Ne3 {[%clk
0:00:05.5]} 32. gxf5 {[%clk 0:00:05]} 32... gxf5 {[%clk 0:00:06.1]} 33. g6
{[%clk 0:00:04.8]} 33... Bd5 {[%clk 0:00:06.8]} 34. Bh3 {[%clk 0:00:01.6]} 34...
Qf6 {[%clk 0:00:06.4]} 35. Qf4 {[%clk 0:00:02.1]} 35... Rbd8 {[%clk 0:00:06.4]}
36. Nxf5 {[%clk 0:00:01.9]} 36... Nxf5 {[%clk 0:00:06.4]} 37. Bxf5 {[%clk
0:00:02.8]} 37... d2 {[%clk 0:00:06.2]} 38. Qh6 {[%clk 0:00:01.8]} 38... dxe1=Q+
{[%clk 0:00:04.5]} 39. Rxe1 {[%clk 0:00:02.7]} 39... Rxe1+ {[%clk 0:00:05.1]}
40. Kf2 {[%clk 0:00:03.6]} 40... Qxf5+ {[%clk 0:00:05.3]} 41. Kxe1 {[%clk
0:00:04.2]} 41... Re8+ {[%clk 0:00:06]} 42. Kd2 {[%clk 0:00:04.8]} 42... Qf2+
{[%clk 0:00:06.5]} 43. Kc1 {[%clk 0:00:04.6]} 43... Qe3+ {[%clk 0:00:07]} 0-1

[Event "Early-Titled-Tuesday-Blitz-May-14-2024"]
[Site "Chess.com"]
[Date "2024.05.14"]
[Round "4"]
[White "Dewarfd"]
[Black "Happy1712Drummer"]
[Result "1/2-1/2"]
[WhiteElo "2073"]
[BlackElo "2433"]
[TimeControl "180+1"]
[EndTime "8:41:24 PDT"]
[Termination "Game drawn by repetition"]

1. d4 {[%clk 0:03:00.9]} 1... d5 {[%clk 0:02:56.5]} 2. e3 {[%clk 0:02:59.2]}
2... e6 {[%clk 0:02:54.5]} 3. Nf3 {[%clk 0:02:59.3]} 3... Nf6 {[%clk 0:02:54.9]}
4. Bd3 {[%clk 0:02:58.4]} 4... c5 {[%clk 0:02:52.7]} 5. b3 {[%clk 0:02:58]} 5...
Nc6 {[%clk 0:02:51.7]} 6. O-O {[%clk 0:02:57]} 6... Bd6 {[%clk 0:02:51.1]} 7.
Bb2 {[%clk 0:02:56.3]} 7... O-O {[%clk 0:02:51.3]} 8. Nbd2 {[%clk 0:02:54.9]}
8... b6 {[%clk 0:02:50.9]} 9. a3 {[%clk 0:02:51.1]} 9... Bb7 {[%clk 0:02:50.6]}
10. Ne5 {[%clk 0:02:49.9]} 10... Nd7 {[%clk 0:02:35.7]} 11. Nxc6 {[%clk
0:02:24.8]} 11... Bxc6 {[%clk 0:02:36.6]} 12. dxc5 {[%clk 0:02:12.9]} 12... Nxc5
{[%clk 0:02:26.7]} 13. Qg4 {[%clk 0:02:01.7]} 13... e5 {[%clk 0:02:11.5]} 14. b4
{[%clk 0:01:37.6]} 14... Nxd3 {[%clk 0:02:07.5]} 15. cxd3 {[%clk 0:01:37.2]}
15... Bb5 {[%clk 0:02:02.2]} 16. Nf3 {[%clk 0:01:00.9]} 16... Qe7 {[%clk
0:01:37.5]} 17. Rfd1 {[%clk 0:00:57.5]} 17... Rac8 {[%clk 0:01:37.2]} 18. Rac1
{[%clk 0:00:31.7]} 18... Rxc1 {[%clk 0:01:36.4]} 19. Bxc1 {[%clk 0:00:32.1]}
19... Bd7 {[%clk 0:01:26]} 20. Qh5 {[%clk 0:00:27.2]} 20... Rc8 {[%clk
0:01:25.1]} 21. Bb2 {[%clk 0:00:23.9]} 21... Rc2 {[%clk 0:01:18]} 22. Bxe5
{[%clk 0:00:20.6]} 22... g6 {[%clk 0:00:54.1]} 23. Bxd6 {[%clk 0:00:19.7]} 23...
Qxd6 {[%clk 0:00:54.7]} 24. Qe5 {[%clk 0:00:19.3]} 24... Qxe5 {[%clk 0:00:49.3]}
25. Nxe5 {[%clk 0:00:18.6]} 25... Ba4 {[%clk 0:00:49.9]} 26. h3 {[%clk
0:00:13.9]} 26... Ra2 {[%clk 0:00:49.9]} 27. Rc1 {[%clk 0:00:13]} 27... Rxa3
{[%clk 0:00:49.4]} 28. Rc8+ {[%clk 0:00:12.3]} 28... Kg7 {[%clk 0:00:49.5]} 29.
Rc7 {[%clk 0:00:13.2]} 29... Kf6 {[%clk 0:00:40.3]} 30. d4 {[%clk 0:00:12.4]}
30... Be8 {[%clk 0:00:39.7]} 31. g4 {[%clk 0:00:10.3]} 31... a5 {[%clk
0:00:24.7]} 32. bxa5 {[%clk 0:00:09.8]} 32... bxa5 {[%clk 0:00:25.3]} 33. Ra7
{[%clk 0:00:09.7]} 33... a4 {[%clk 0:00:24.5]} 34. h4 {[%clk 0:00:07]} 34...
Ra1+ {[%clk 0:00:23.8]} 35. Kg2 {[%clk 0:00:07.1]} 35... h6 {[%clk 0:00:24.5]}
36. Kg3 {[%clk 0:00:06.9]} 36... a3 {[%clk 0:00:24.6]} 37. f4 {[%clk 0:00:06.7]}
37... a2 {[%clk 0:00:21.5]} 38. g5+ {[%clk 0:00:05.7]} 38... hxg5 {[%clk
0:00:22]} 39. hxg5+ {[%clk 0:00:06]} 39... Kg7 {[%clk 0:00:22.4]} 40. Kh2 {[%clk
0:00:06]} 40... Kg8 {[%clk 0:00:18.7]} 41. Ng4 {[%clk 0:00:04.1]} 41... Bc6
{[%clk 0:00:07.2]} 42. Nf6+ {[%clk 0:00:04.6]} 42... Kg7 {[%clk 0:00:07.8]} 43.
Ra6 {[%clk 0:00:04]} 43... Bb7 {[%clk 0:00:05.1]} 44. Ra7 {[%clk 0:00:04.2]}
44... Bc6 {[%clk 0:00:04]} 45. Ra6 {[%clk 0:00:04.3]} 45... Bb7 {[%clk
0:00:04.5]} 46. Ra7 {[%clk 0:00:04.4]} 46... Bc6 {[%clk 0:00:04.9]} 1/2-1/2

[Event "Early-Titled-Tuesday-Blitz-May-14-2024"]
[Site "Chess.com"]
[Date "2024.05.14"]
[Round "4"]
[White "alexrustemov"]
[Black "IlanSchnaider"]
[Result "0-1"]
[WhiteElo "2930"]
[BlackElo "2733"]
[TimeControl "180+1"]
[EndTime "8:41:27 PDT"]
[Termination "IlanSchnaider won by checkmate"]

1. d4 {[%clk 0:03:00.9]} 1... Nf6 {[%clk 0:02:59.2]} 2. Nf3 {[%clk 0:03:01.1]}
2... g6 {[%clk 0:02:59.6]} 3. g3 {[%clk 0:03:01.5]} 3... Bg7 {[%clk 0:03:00.3]}
4. Bg2 {[%clk 0:03:02.2]} 4... O-O {[%clk 0:03:00.9]} 5. O-O {[%clk 0:03:02.9]}
5... d5 {[%clk 0:03:01.8]} 6. Be3 {[%clk 0:03:02.6]} 6... Bf5 {[%clk 0:02:55.7]}
7. Qc1 {[%clk 0:03:01.7]} 7... Nbd7 {[%clk 0:02:40.8]} 8. c3 {[%clk 0:02:56.7]}
8... Nb6 {[%clk 0:02:38.2]} 9. Bh6 {[%clk 0:02:56]} 9... Rc8 {[%clk 0:02:33.1]}
10. Bxg7 {[%clk 0:02:54.2]} 10... Kxg7 {[%clk 0:02:34]} 11. Nh4 {[%clk
0:02:46.7]} 11... Be4 {[%clk 0:02:31.9]} 12. Nd2 {[%clk 0:02:41.5]} 12... Bxg2
{[%clk 0:02:31.7]} 13. Kxg2 {[%clk 0:02:41.5]} 13... c5 {[%clk 0:02:30.7]} 14.
e3 {[%clk 0:02:40]} 14... Qd6 {[%clk 0:02:16]} 15. Nhf3 {[%clk 0:02:34.1]} 15...
Rfe8 {[%clk 0:02:07.5]} 16. Qc2 {[%clk 0:02:32]} 16... Nfd7 {[%clk 0:02:04]} 17.
Rad1 {[%clk 0:02:26.4]} 17... e5 {[%clk 0:01:51.8]} 18. dxe5 {[%clk 0:02:25.9]}
18... Nxe5 {[%clk 0:01:52.5]} 19. Nxe5 {[%clk 0:02:26.4]} 19... Qxe5 {[%clk
0:01:49.3]} 20. Nf3 {[%clk 0:02:25.1]} 20... Qf6 {[%clk 0:01:45.8]} 21. a4
{[%clk 0:02:16.1]} 21... Rcd8 {[%clk 0:01:35.6]} 22. a5 {[%clk 0:02:14.6]} 22...
Nc4 {[%clk 0:01:35.1]} 23. Rd3 {[%clk 0:01:54.7]} 23... Qf5 {[%clk 0:01:12.5]}
24. Nh4 {[%clk 0:01:15.3]} 24... Qe4+ {[%clk 0:01:02.2]} 25. Kg1 {[%clk
0:01:15.3]} 25... Nxb2 {[%clk 0:00:57.9]} 26. Rd2 {[%clk 0:01:11.5]} 26... Nc4
{[%clk 0:00:57.6]} 27. Qxe4 {[%clk 0:01:05]} 27... dxe4 {[%clk 0:00:58.2]} 28.
Ra2 {[%clk 0:01:05.3]} 28... Rd3 {[%clk 0:00:54.5]} 29. Rc1 {[%clk 0:01:02]}
29... Red8 {[%clk 0:00:47.2]} 30. Ra4 {[%clk 0:00:53.1]} 30... Nd2 {[%clk
0:00:39.2]} 31. Ng2 {[%clk 0:00:50.8]} 31... Nf3+ {[%clk 0:00:38.4]} 32. Kf1
{[%clk 0:00:48.6]} 32... Nxh2+ {[%clk 0:00:31.3]} 33. Kg1 {[%clk 0:00:45.9]}
33... Nf3+ {[%clk 0:00:31.7]} 34. Kf1 {[%clk 0:00:46.6]} 34... b6 {[%clk
0:00:24.1]} 35. axb6 {[%clk 0:00:45.6]} 35... axb6 {[%clk 0:00:25]} 36. Nf4
{[%clk 0:00:30.6]} 36... Rd1+ {[%clk 0:00:24.9]} 37. Rxd1 {[%clk 0:00:31.1]}
37... Rxd1+ {[%clk 0:00:25.7]} 38. Kg2 {[%clk 0:00:31.7]} 38... Rg1+ {[%clk
0:00:17.7]} 39. Kh3 {[%clk 0:00:31.9]} 39... f5 {[%clk 0:00:15]} 40. Ra7+ {[%clk
0:00:30.1]} 40... Kf6 {[%clk 0:00:15.2]} 41. Rxh7 {[%clk 0:00:25.2]} 41... Rh1+
{[%clk 0:00:13.7]} 42. Kg2 {[%clk 0:00:17.5]} 42... Rxh7 {[%clk 0:00:14.6]} 43.
Nd5+ {[%clk 0:00:17.9]} 43... Ke5 {[%clk 0:00:14.2]} 44. Nxb6 {[%clk 0:00:18.8]}
44... Rh2+ {[%clk 0:00:13.8]} 45. Kf1 {[%clk 0:00:19.3]} 45... Rh1+ {[%clk
0:00:14.3]} 46. Kg2 {[%clk 0:00:19.9]} 46... Rg1+ {[%clk 0:00:14.6]} 47. Kh3
{[%clk 0:00:20.3]} 47... g5 {[%clk 0:00:15.2]} 48. Nc4+ {[%clk 0:00:16.8]} 48...
Kf6 {[%clk 0:00:14.9]} 49. g4 {[%clk 0:00:01.8]} 49... fxg4# {[%clk 0:00:15]}
0-1